[Event "Balkan Youth Online-ch 2020"]
[Site "Online"]
[Date "2020.10.31"]
[Round "4.93"]
[White "Bojovic, Neda"]
[Black "Shqau, Olta"]
[Result "1/2-1/2"]
[ECO "D50"]
[WhiteElo "1316"]
[BlackElo "1373"]
[Annotator "NA RC"]
[PlyCount "47"]
[EventDate "2020.10.31"]
[EventType "swiss"]
[SourceTitle "playchess.com"]
[Source "ChessBase"]
[SourceQuality "1"]
[TimeControl "1500+5"]

1. d4 {[%emt 0:00:00]} e6 {[%emt 0:00:10]} 2. c4 {[%emt 0:00:00]} d5 {[%emt 0:00:21]} 3. Nc3 {[%emt 0:00:00]} Nf6 {[%emt 0:00:00]} 4. Bg5 {[%emt 0:00:00]} c5 {[%emt 0:00:00]} 5. e3 {[%emt 0:00:00]} Nc6 {[%emt 0:00:00]} 6. Nf3 {[%emt 0:00:05]} Be7 {[%emt 0:00:00]} 7. cxd5 {[%emt 0:00:05]} cxd4 {[%emt 0:00:16]} 8. Nxd4 {[%emt 0:00:34]} Nxd5 {[%emt 0:00:04]} 9. Bxe7 {[%emt 0:00:02]} Ncxe7 {[%emt 0:00:16]} 10. Bb5+ {[%emt 0:01:38]} Bd7 {[%emt 0:00:03]} 11. Qa4 {[%emt 0:00:00]} Nxc3 {[%emt 0:00:47]} 12. bxc3 {[%emt 0:00:00]} Nd5 {[%emt 0:01:08]} 13. Ne2 {[%emt 0:01:09]} Nb6 {[%emt 0:00:16]} 14. Qb4 {[%emt 0:00:23]} Rc8 {[%emt 0:02:30]} 15. Rc1 {[%emt 0:01:15]} Bxb5 {[%emt 0:01:25]} 16. Qxb5+ {[%emt 0:00:00]} Qd7 {[%emt 0:00:00]} 17. Qb4 {[%emt 0:00:24]} Nd5 {[%emt 0:00:14]} 18. Qa3 {[%emt 0:00:00]} a6 {[%emt 0:00:03]} 19. O-O {[%emt 0:00:03]} Qc6 {[%emt 0:00:20]} 20. Rfd1 {[%emt 0:00:03]} Qc5 {[%emt 0:00:01]} 21. Qa4+ {[%emt 0:00:53]} Qc6 {[%emt 0:00:08]} 22. Qa3 {[%emt 0:00:00]} Qc5 {[%emt 0:00:00]} 23. Qa4+ {[%emt 0:00:00]} Qc6 {[%emt 0:00:00]} 24. Qa3 {[%emt 0:00:00]} 1/2-1/2

[Event "Balkan Youth Online-ch 2020"]
[Site "Online"]
[Date "2020.10.31"]
[Round "4.94"]
[White "Ergazaki, Eirini"]
[Black "Zeycan, Alara"]
[Result "1-0"]
[ECO "C56"]
[WhiteElo "1577"]
[BlackElo "1230"]
[Annotator "NA RC"]
[PlyCount "113"]
[EventDate "2020.10.31"]
[EventType "swiss"]
[SourceTitle "playchess.com"]
[Source "ChessBase"]
[SourceQuality "1"]
[TimeControl "1500+5"]

1. e4 {[%emt 0:00:00]} e5 {[%emt 0:00:02]} 2. Nf3 {[%emt 0:00:00]} Nc6 {[%emt 0:00:00]} 3. d4 {[%emt 0:00:00]} exd4 {[%emt 0:00:00]} 4. Bc4 {[%emt 0:00:00]} Nf6 {[%emt 0:00:04]} 5. Ng5 {[%emt 0:00:00]} d5 {[%emt 0:00:03]} 6. exd5 {[%emt 0:00:00]} Qe7+ {[%emt 0:00:10]} 7. Kf1 {[%emt 0:00:00]} Ne5 {[%emt 0:00:00]} 8. Qxd4 {[%emt 0:00:00]} h6 {[%emt 0:00:31]} 9. Ne4 {[%emt 0:01:01]} Nxe4 {[%emt 0:03:21]} 10. Qxe4 {[%emt 0:00:25]} Nxc4 {[%emt 0:00:03]} 11. Qxc4 {[%emt 0:00:00]} Qc5 {[%emt 0:00:00]} 12. Qe4+ {[%emt 0:02:57]} Be7 {[%emt 0:00:05]} 13. b3 {[%emt 0:00:30]} O-O {[%emt 0:00:20]} 14. Ba3 {[%emt 0:00:45]} Bf5 {[%emt 0:02:45]} 15. Qxf5 {[%emt 0:01:59]} Qb5+ {[%emt 0:00:04]} 16. c4 {[%emt 0:00:00]} Qe8 {[%emt 0:00:00]} 17. Bxe7 {[%emt 0:00:44]} Qxe7 {[%emt 0:00:00]} 18. Nd2 {[%emt 0:00:33]} Qb4 {[%emt 0:00:03]} 19. Qd3 {[%emt 0:00:15]} Rad8 {[%emt 0:00:07]} 20. Ne4 {[%emt 0:01:12]} Rfe8 {[%emt 0:00:39]} 21. Re1 {[%emt 0:01:03]} f5 {[%emt 0:00:13]} 22. Nc3 {[%emt 0:00:09]} Rxe1+ {[%emt 0:00:08]} 23. Kxe1 {[%emt 0:00:01]} Re8+ {[%emt 0:00:00]} 24. Kd1 {[%emt 0:00:18]} Qe7 {[%emt 0:00:09]} 25. Qxf5 {[%emt 0:00:46]} Qh4 {[%emt 0:00:08]} 26. Ne2 {[%emt 0:01:16]} Qe7 {[%emt 0:00:57]} 27. Re1 {[%emt 0:00:32]} Qa3 {[%emt 0:00:12]} 28. Qc2 {[%emt 0:00:01]} Qc5 {[%emt 0:00:07]} 29. Nf4 {[%emt 0:00:47]} Qd4+ {[%emt 0:00:55]} 30. Nd3 {[%emt 0:00:34]} Qa1+ {[%emt 0:01:02]} 31. Nc1 {[%emt 0:00:16]} Qd4+ {[%emt 0:00:00]} 32. Qd2 {[%emt 0:00:00]} Rxe1+ {[%emt 0:00:12]} 33. Kxe1 {[%emt 0:00:00]} Qe4+ {[%emt 0:00:00]} 34. Kf1 {[%emt 0:00:15]} Kf7 {[%emt 0:00:00]} 35. Qd3 {[%emt 0:00:43]} Qf4 {[%emt 0:00:14]} 36. Qf3 {[%emt 0:00:20]} Qf6 {[%emt 0:00:05]} 37. Ke2 {[%emt 0:00:08]} Ke7 {[%emt 0:00:00]} 38. Qxf6+ {[%emt 0:00:00]} Kxf6 {[%emt 0:00:00]} 39. Nd3 {[%emt 0:00:00]} Ke7 {[%emt 0:00:02]} 40. Ke3 {[%emt 0:00:00]} Kd6 {[%emt 0:00:00]} 41. Kd4 {[%emt 0:00:00]} c6 {[%emt 0:00:00]} 42. Nf4 {[%emt 0:00:00]} b6 {[%emt 0:00:00]} 43. Ne6 {[%emt 0:00:00]} g6 {[%emt 0:00:00]} 44. Nd8 {[%emt 0:00:09]} cxd5 {[%emt 0:00:04]} 45. cxd5 {[%emt 0:00:00]} Kd7 {[%emt 0:00:00]} 46. Nf7 {[%emt 0:00:00]} h5 {[%emt 0:00:00]} 47. Ne5+ {[%emt 0:00:00]} Kd6 {[%emt 0:00:00]} 48. Nxg6 {[%emt 0:00:00]} b5 {[%emt 0:00:00]} 49. f4 {[%emt 0:00:00]} b4 {[%emt 0:00:00]} 50. f5 {[%emt 0:00:00]} h4 {[%emt 0:00:00]} 51. f6 {[%emt 0:00:00]} h3 {[%emt 0:00:00]} 52. gxh3 {[%emt 0:00:00]} a5 {[%emt 0:00:00]} 53. f7 {[%emt 0:00:00]} a4 {[%emt 0:00:00]} 54. f8=Q+ {[%emt 0:00:00]} Kd7 {[%emt 0:00:00]} 55. Qe7+ {[%emt 0:00:00]} Kc8 {[%emt 0:00:00]} 56. d6 {[%emt 0:00:00]} a3 {[%emt 0:00:00]} 57. Qc7# {[%emt 0:00:00]} 1-0

[Event "Balkan Youth Online-ch 2020"]
[Site "Online"]
[Date "2020.10.31"]
[Round "5.3"]
[White "Gkavardinas, Antonios"]
[Black "Boci, Mateo"]
[Result "1-0"]
[ECO "C14"]
[WhiteElo "1606"]
[BlackElo "1286"]
[Annotator "NA RC"]
[PlyCount "179"]
[EventDate "2020.10.31"]
[EventType "swiss"]
[SourceTitle "playchess.com"]
[Source "ChessBase"]
[SourceQuality "1"]
[TimeControl "1500+5"]

1. e4 {[%emt 0:00:00]} e6 {[%emt 0:00:02]} 2. d4 {[%emt 0:00:00]} d5 {[%emt 0:00:03]} 3. Nc3 {[%emt 0:00:00]} Nf6 {[%emt 0:00:02]} 4. Bg5 {[%emt 0:00:00]} Be7 {[%emt 0:00:00]} 5. e5 {[%emt 0:00:00]} Nfd7 {[%emt 0:00:00]} 6. Bxe7 {[%emt 0:00:00]} Qxe7 {[%emt 0:00:04]} 7. f4 {[%emt 0:00:00]} a6 {[%emt 0:00:05]} 8. Nf3 {[%emt 0:00:00]} c5 {[%emt 0:00:02]} 9. Qd2 {[%emt 0:00:00]} Nc6 {[%emt 0:00:04]} 10. dxc5 {[%emt 0:00:00]} Nxc5 {[%emt 0:00:00]} 11. Bd3 {[%emt 0:00:00]} b5 {[%emt 0:00:07]} 12. O-O {[%emt 0:00:11]} O-O {[%emt 0:00:12]} 13. Ne2 {[%emt 0:00:41]} f6 {[%emt 0:00:15]} 14. exf6 {[%emt 0:01:04]} Qxf6 {[%emt 0:00:49]} 15. c3 {[%emt 0:00:09]} Nxd3 {[%emt 0:00:17]} 16. Qxd3 {[%emt 0:00:16]} h6 {[%emt 0:00:50]} 17. Ned4 {[%emt 0:00:32]} Bd7 {[%emt 0:00:46]} 18. Rae1 {[%emt 0:00:47]} Rae8 {[%emt 0:00:25]} 19. Nxc6 {[%emt 0:00:36]} Bxc6 {[%emt 0:00:03]} 20. Nd4 {[%emt 0:00:01]} Bd7 {[%emt 0:00:21]} 21. Rf3 {[%emt 0:00:57]} Re7 {[%emt 0:01:17]} 22. Qe3 {[%emt 0:00:40]} Rfe8 {[%emt 0:03:01]} 23. Qe5 {[%emt 0:00:34]} Qxe5 {[%emt 0:00:54]} 24. Rxe5 {[%emt 0:00:03]} a5 {[%emt 0:02:17]} 25. Rfe3 {[%emt 0:00:23]} Kf7 {[%emt 0:00:12]} 26. Nb3 {[%emt 0:00:38]} a4 {[%emt 0:00:27]} 27. Nc5 {[%emt 0:00:01]} Bc8 {[%emt 0:00:09]} 28. b3 {[%emt 0:01:27]} Rc7 {[%emt 0:00:42]} 29. b4 {[%emt 0:00:04]} Rce7 {[%emt 0:00:22]} 30. a3 {[%emt 0:00:16]} g6 {[%emt 0:00:20]} 31. Kf2 {[%emt 0:00:30]} Rd8 {[%emt 0:00:44]} 32. Rd3 {[%emt 0:00:26]} Kf6 {[%emt 0:00:28]} 33. Ke3 {[%emt 0:00:48]} g5 {[%emt 0:00:54]} 34. Ne4+ {[%emt 0:00:07]} Kg6 {[%emt 0:01:04]} 35. fxg5 {[%emt 0:02:10]} Rf8 {[%emt 0:00:20]} 36. Ng3 {[%emt 0:00:41]} hxg5 {[%emt 0:00:40]} 37. Rdxd5 {[%emt 0:01:09]} exd5 {[%emt 0:03:16]} 38. Rxe7 {[%emt 0:00:01]} Kf6 {[%emt 0:00:04]} 39. Rc7 {[%emt 0:00:12]} Ke6 {[%emt 0:00:35]} 40. Rc6+ {[%emt 0:00:37]} Ke5 {[%emt 0:00:32]} 41. Ne2 {[%emt 0:01:02]} g4 {[%emt 0:00:51]} 42. Rh6 {[%emt 0:01:04]} Re8 {[%emt 0:00:10]} 43. Rh5+ {[%emt 0:00:25]} Kd6+ {[%emt 0:00:07]} 44. Kd3 {[%emt 0:00:10]} Rf8 {[%emt 0:00:10]} 45. Kd4 {[%emt 0:00:36]} Be6 {[%emt 0:00:29]} 46. Ke3 {[%emt 0:00:35]} Re8 {[%emt 0:00:16]} 47. Rh6 {[%emt 0:00:56]} Ke5 {[%emt 0:00:07]} 48. Nd4 {[%emt 0:00:08]} Bd7 {[%emt 0:00:08]} 49. h4 {[%emt 0:00:35]} gxh3 {[%emt 0:00:09]} 50. gxh3 {[%emt 0:00:00]} Rc8 {[%emt 0:00:29]} 51. Nf3+ {[%emt 0:00:43]} Kf5 {[%emt 0:00:09]} 52. Kd4 {[%emt 0:00:05]} Rc4+ {[%emt 0:00:18]} 53. Kd3 {[%emt 0:00:08]} Rf4 {[%emt 0:00:29]} 54. Nd2 {[%emt 0:00:31]} Rf2 {[%emt 0:00:17]} 55. Ke3 {[%emt 0:00:02]} Rh2 {[%emt 0:00:16]} 56. Nf3 {[%emt 0:00:33]} Ra2 {[%emt 0:00:06]} 57. Rd6 {[%emt 0:00:00]} Rxa3 {[%emt 0:00:25]} 58. Rxd7 {[%emt 0:00:03]} Rxc3+ {[%emt 0:00:06]} 59. Ke2 {[%emt 0:00:00]} a3 {[%emt 0:00:09]} 60. Re7 {[%emt 0:00:23]} Kf4 {[%emt 0:00:37]} 61. Ne1 {[%emt 0:00:27]} Rxh3 {[%emt 0:00:08]} 62. Nd3+ {[%emt 0:00:33]} Kf5 {[%emt 0:00:09]} 63. Ra7 {[%emt 0:00:00]} Rh2+ {[%emt 0:00:09]} 64. Ke3 {[%emt 0:00:00]} a2 {[%emt 0:00:01]} 65. Kd4 {[%emt 0:00:00]} Rd2 {[%emt 0:00:17]} 66. Kc3 {[%emt 0:00:19]} Rh2 {[%emt 0:00:14]} 67. Nb2 {[%emt 0:00:04]} Ke4 {[%emt 0:00:09]} 68. Kb3 {[%emt 0:00:05]} Kd4 {[%emt 0:00:02]} 69. Kxa2 {[%emt 0:00:14]} Kc3 {[%emt 0:00:01]} 70. Ka3 {[%emt 0:00:30]} d4 {[%emt 0:00:07]} 71. Rc7+ {[%emt 0:00:01]} Kd2 {[%emt 0:00:02]} 72. Kb3 {[%emt 0:00:03]} Rh3+ {[%emt 0:00:06]} 73. Ka2 {[%emt 0:00:00]} Rh2 {[%emt 0:00:03]} 74. Rc5 {[%emt 0:00:33]} Rh1 {[%emt 0:00:02]} 75. Rxb5 {[%emt 0:00:14]} Kc3 {[%emt 0:00:02]} 76. Rb8 {[%emt 0:00:08]} d3 {[%emt 0:00:04]} 77. Nxd3 {[%emt 0:00:26]} Kxd3 {[%emt 0:00:10]} 78. Kb3 {[%emt 0:00:00]} Rb1+ {[%emt 0:00:03]} 79. Ka4 {[%emt 0:00:00]} Ra1+ {[%emt 0:00:01]} 80. Kb5 {[%emt 0:00:02]} Rb1 {[%emt 0:00:01]} 81. Rc8 {[%emt 0:00:24]} Kd4 {[%emt 0:00:01]} 82. Ka5 {[%emt 0:00:14]} Kd5 {[%emt 0:00:00]} 83. b5 {[%emt 0:00:07]} Kd6 {[%emt 0:00:00]} 84. Ka6 {[%emt 0:00:08]} Kd7 {[%emt 0:00:00]} 85. Rc2 {[%emt 0:00:06]} Ra1+ {[%emt 0:00:00]} 86. Kb7 {[%emt 0:00:01]} Rd1 {[%emt 0:00:00]} 87. b6 {[%emt 0:00:06]} Rd6 {[%emt 0:00:05]} 88. Ka7 {[%emt 0:00:10]} Kd8 {[%emt 0:00:14]} 89. b7 {[%emt 0:00:12]} Rd7 {[%emt 0:00:00]} 90. Ka8 {[%emt 0:00:05]} 1-0

[Event "Balkan Youth Online-ch 2020"]
[Site "Online"]
[Date "2020.10.31"]
[Round "5.4"]
[White "Kovacec, Tilen"]
[Black "Sava, Robert-Gabriel"]
[Result "0-1"]
[ECO "D10"]
[WhiteElo "1183"]
[BlackElo "1716"]
[Annotator "NA"]
[PlyCount "60"]
[EventDate "2020.10.31"]
[EventType "swiss"]
[SourceTitle "playchess.com"]
[Source "ChessBase"]
[SourceQuality "1"]
[TimeControl "1500+5"]

1. d4 {[%emt 0:00:00]} d5 {[%emt 0:00:00]} 2. c4 {[%emt 0:00:00]} c6 {[%emt 0:00:00]} 3. Nc3 {[%emt 0:00:00]} Nf6 {[%emt 0:00:00]} 4. cxd5 {[%emt 0:00:06]} cxd5 {[%emt 0:00:00]} 5. Bg5 {[%emt 0:00:24]} h6 {[%emt 0:00:00]} 6. Bxf6 {[%emt 0:00:39]} gxf6 {[%emt 0:00:04]} 7. Qc2 {[%emt 0:00:22]} Nc6 {[%emt 0:00:00]} 8. e3 {[%emt 0:00:05]} e5 {[%emt 0:00:34]} 9. Nf3 {[%emt 0:00:33]} e4 {[%emt 0:00:10]} 10. Ng1 {[%emt 0:00:01]} Be6 {[%emt 0:00:17]} 11. Bb5 {[%emt 0:00:25]} a6 {[%emt 0:00:22]} 12. Bxc6+ {[%emt 0:00:01]} bxc6 {[%emt 0:00:00]} 13. Nge2 {[%emt 0:00:01]} Bd6 {[%emt 0:00:11]} 14. O-O {[%emt 0:00:02]} Bd7 {[%emt 0:00:19]} 15. Rfc1 {[%emt 0:00:10]} h5 {[%emt 0:00:17]} 16. Na4 {[%emt 0:01:16]} h4 {[%emt 0:00:30]} 17. Nc5 {[%emt 0:00:45]} Rc8 {[%emt 0:00:02]} 18. Nxd7 {[%emt 0:00:14]} Qxd7 {[%emt 0:00:00]} 19. h3 {[%emt 0:00:03]} Rg8 {[%emt 0:00:00]} 20. Kh1 {[%emt 0:00:00]} Ke7 {[%emt 0:00:23]} 21. Nc3 {[%emt 0:00:27]} Rg5 {[%emt 0:01:17]} 22. Rg1 {[%emt 0:00:21]} Rcg8 {[%emt 0:00:09]} 23. g4 {[%emt 0:01:55]} hxg3 {[%emt 0:00:07]} 24. Kg2 {[%emt 0:00:55]} gxf2+ {[%emt 0:01:04]} 25. Kxf2 {[%emt 0:00:00]} Qxh3 {[%emt 0:00:01]} 26. Rxg5 {[%emt 0:04:02]} Rxg5 {[%emt 0:00:17]} 27. Ne2 {[%emt 0:02:33]} Rg2+ {[%emt 0:00:16]} 28. Ke1 {[%emt 0:00:35]} Bb4+ {[%emt 0:00:00]} 29. Kd1 {[%emt 0:01:48]} Qh1+ {[%emt 0:00:00]} 30. Ng1 {[%emt 0:00:20]} Qxg1# {[%emt 0:00:00]} 0-1

[Event "Balkan Youth Online-ch 2020"]
[Site "Online"]
[Date "2020.10.31"]
[Round "5.5"]
[White "Lafkidis, Apostolos"]
[Black "Alimema, Alvin"]
[Result "1-0"]
[ECO "C45"]
[WhiteElo "1497"]
[BlackElo "1110"]
[Annotator "NA RC"]
[PlyCount "173"]
[EventDate "2020.10.31"]
[EventType "swiss"]
[SourceTitle "playchess.com"]
[Source "ChessBase"]
[SourceQuality "1"]
[TimeControl "1500+5"]

1. e4 {[%emt 0:00:00]} e5 {[%emt 0:00:00]} 2. Nf3 {[%emt 0:00:00]} Nc6 {[%emt 0:00:00]} 3. d4 {[%emt 0:00:00]} exd4 {[%emt 0:00:00]} 4. Nxd4 {[%emt 0:00:00]} Bc5 {[%emt 0:00:01]} 5. Nf5 {[%emt 0:00:00]} Qf6 {[%emt 0:01:19]} 6. Nc3 {[%emt 0:00:00]} Nge7 {[%emt 0:00:20]} 7. Ne3 {[%emt 0:00:00]} d6 {[%emt 0:00:40]} 8. Be2 {[%emt 0:00:00]} Be6 {[%emt 0:00:52]} 9. O-O {[%emt 0:00:28]} O-O {[%emt 0:00:28]} 10. Ned5 {[%emt 0:00:04]} Bxd5 {[%emt 0:00:11]} 11. exd5 {[%emt 0:00:00]} Nd4 {[%emt 0:00:41]} 12. Bd3 {[%emt 0:00:01]} Ng6 {[%emt 0:00:42]} 13. Ne4 {[%emt 0:00:07]} Qe7 {[%emt 0:01:34]} 14. Nxc5 {[%emt 0:00:10]} dxc5 {[%emt 0:00:51]} 15. c3 {[%emt 0:00:08]} c4 {[%emt 0:00:13]} 16. Bxg6 {[%emt 0:02:52]} Ne2+ {[%emt 0:00:24]} 17. Kh1 {[%emt 0:00:01]} Nxc1 {[%emt 0:00:31]} 18. Bxh7+ {[%emt 0:00:04]} Kxh7 {[%emt 0:00:02]} 19. Qh5+ {[%emt 0:02:36]} Kg8 {[%emt 0:00:22]} 20. Raxc1 {[%emt 0:01:16]} Rad8 {[%emt 0:01:29]} 21. Rcd1 {[%emt 0:03:47]} Rfe8 {[%emt 0:00:33]} 22. Rd2 {[%emt 0:04:32]} Qe1 {[%emt 0:00:41]} 23. Qd1 {[%emt 0:00:15]} Qe5 {[%emt 0:03:59]} 24. h3 {[%emt 0:00:12]} Rd6 {[%emt 0:01:16]} 25. Qa4 {[%emt 0:02:01]} Red8 {[%emt 0:03:23]} 26. Qxc4 {[%emt 0:01:31]} Rxd5 {[%emt 0:02:17]} 27. Re2 {[%emt 0:00:31]} Qd6 {[%emt 0:01:00]} 28. Rfe1 {[%emt 0:00:16]} Kf8 {[%emt 0:02:25]} 29. Qh4 {[%emt 0:00:12]} Qh6 {[%emt 0:00:43]} 30. Qxh6 {[%emt 0:00:00]} gxh6 {[%emt 0:00:00]} 31. g3 {[%emt 0:00:13]} c6 {[%emt 0:00:11]} 32. Kg2 {[%emt 0:00:01]} Rd2 {[%emt 0:00:13]} 33. Kf3 {[%emt 0:00:13]} R2d3+ {[%emt 0:00:00]} 34. Re3 {[%emt 0:00:38]} Rd2 {[%emt 0:00:05]} 35. R1e2 {[%emt 0:00:14]} a5 {[%emt 0:00:09]} 36. Re8+ {[%emt 0:00:28]} Rxe8 {[%emt 0:00:10]} 37. Rxd2 {[%emt 0:00:00]} Re7 {[%emt 0:00:01]} 38. Kg4 {[%emt 0:00:15]} Kg7 {[%emt 0:00:06]} 39. h4 {[%emt 0:00:03]} Re4+ {[%emt 0:00:00]} 40. f4 {[%emt 0:00:30]} Re7 {[%emt 0:00:00]} 41. h5 {[%emt 0:00:22]} Rc7 {[%emt 0:00:13]} 42. Kf3 {[%emt 0:00:33]} Re7 {[%emt 0:00:00]} 43. g4 {[%emt 0:00:00]} Rc7 {[%emt 0:00:00]} 44. g5 {[%emt 0:00:05]} Re7 {[%emt 0:00:00]} 45. Kg4 {[%emt 0:00:06]} Re1 {[%emt 0:00:09]} 46. Rf2 {[%emt 0:00:16]} Rg1+ {[%emt 0:00:00]} 47. Kf5 {[%emt 0:00:00]} Rd1 {[%emt 0:00:02]} 48. Rg2 {[%emt 0:01:04]} Rd5+ {[%emt 0:00:04]} 49. Ke4 {[%emt 0:00:10]} b5 {[%emt 0:00:12]} 50. Kf3 {[%emt 0:00:36]} Rd3+ {[%emt 0:00:08]} 51. Kg4 {[%emt 0:00:00]} Rd5 {[%emt 0:00:05]} 52. Re2 {[%emt 0:00:20]} Rd7 {[%emt 0:00:02]} 53. Rc2 {[%emt 0:00:17]} Rd1 {[%emt 0:00:05]} 54. b3 {[%emt 0:00:26]} Rg1+ {[%emt 0:00:18]} 55. Kf5 {[%emt 0:00:35]} Rh1 {[%emt 0:00:04]} 56. gxh6+ {[%emt 0:00:17]} Kxh6 {[%emt 0:00:01]} 57. Kf6 {[%emt 0:00:00]} Rxh5 {[%emt 0:00:04]} 58. Kxf7 {[%emt 0:00:00]} Rf5+ {[%emt 0:00:00]} 59. Ke6 {[%emt 0:00:00]} Rxf4 {[%emt 0:00:00]} 60. Kd6 {[%emt 0:00:00]} Rf6+ {[%emt 0:00:00]} 61. Kc5 {[%emt 0:00:00]} a4 {[%emt 0:00:04]} 62. bxa4 {[%emt 0:00:00]} bxa4 {[%emt 0:00:00]} 63. Kb4 {[%emt 0:00:00]} Re6 {[%emt 0:00:00]} 64. Kxa4 {[%emt 0:00:00]} Kg5 {[%emt 0:00:00]} 65. Kb4 {[%emt 0:00:00]} Kf6 {[%emt 0:00:05]} 66. Kc5 {[%emt 0:00:06]} Ke7 {[%emt 0:00:00]} 67. Kb6 {[%emt 0:00:04]} Kd7 {[%emt 0:00:09]} 68. a4 {[%emt 0:00:26]} Kc8 {[%emt 0:00:19]} 69. a5 {[%emt 0:00:00]} Re5 {[%emt 0:00:30]} 70. a6 {[%emt 0:00:02]} Kb8 {[%emt 0:00:11]} 71. a7+ {[%emt 0:00:10]} Ka8 {[%emt 0:00:00]} 72. Rd2 {[%emt 0:00:13]} Re8 {[%emt 0:00:03]} 73. Rd7 {[%emt 0:00:06]} Rc8 {[%emt 0:00:07]} 74. Rc7 {[%emt 0:00:50]} Rxc7 {[%emt 0:00:02]} 75. Kxc7 {[%emt 0:00:00]} c5 {[%emt 0:00:09]} 76. Kb6 {[%emt 0:00:02]} c4 {[%emt 0:00:00]} 77. Kc5 {[%emt 0:00:00]} Kxa7 {[%emt 0:00:00]} 78. Kxc4 {[%emt 0:00:00]} Kb7 {[%emt 0:00:00]} 79. Kb5 {[%emt 0:00:00]} Kc7 {[%emt 0:00:00]} 80. Kc5 {[%emt 0:00:00]} Kd7 {[%emt 0:00:00]} 81. Kb6 {[%emt 0:00:00]} Kc8 {[%emt 0:00:00]} 82. Kc6 {[%emt 0:00:00]} Kd8 {[%emt 0:00:00]} 83. c4 {[%emt 0:00:00]} Kc8 {[%emt 0:00:00]} 84. c5 {[%emt 0:00:00]} Kb8 {[%emt 0:00:00]} 85. Kd7 {[%emt 0:00:00]} Kb7 {[%emt 0:00:06]} 86. c6+ {[%emt 0:00:00]} Kb6 {[%emt 0:00:29]} 87. c7 {[%emt 0:00:00]} 1-0

[Event "Balkan Youth Online-ch 2020"]
[Site "Online"]
[Date "2020.10.31"]
[Round "5.6"]
[White "Yordanov, Mario"]
[Black "Palaiologou, Apostolos"]
[Result "0-1"]
[ECO "B80"]
[WhiteElo "1213"]
[BlackElo "1410"]
[Annotator "NA"]
[PlyCount "126"]
[EventDate "2020.10.31"]
[EventType "swiss"]
[SourceTitle "playchess.com"]
[Source "ChessBase"]
[SourceQuality "1"]
[TimeControl "1500+5"]

1. e4 {[%emt 0:00:00]} c5 {[%emt 0:00:00]} 2. Nf3 {[%emt 0:00:00]} d6 {[%emt 0:00:00]} 3. d4 {[%emt 0:00:03]} cxd4 {[%emt 0:00:00]} 4. Nxd4 {[%emt 0:00:00]} Nf6 {[%emt 0:00:00]} 5. Nc3 {[%emt 0:00:08]} a6 {[%emt 0:00:00]} 6. Be3 {[%emt 0:00:06]} e6 {[%emt 0:00:03]} 7. f3 {[%emt 0:00:14]} b5 {[%emt 0:00:49]} 8. a3 {[%emt 0:00:12]} Bb7 {[%emt 0:00:13]} 9. Qd2 {[%emt 0:00:02]} Nbd7 {[%emt 0:00:12]} 10. Nb3 {[%emt 0:00:14]} Be7 {[%emt 0:00:33]} 11. Be2 {[%emt 0:00:30]} Qc7 {[%emt 0:00:29]} 12. g4 {[%emt 0:00:15]} Nb6 {[%emt 0:01:18]} 13. h4 {[%emt 0:00:59]} Nfd7 {[%emt 0:00:51]} 14. g5 {[%emt 0:01:37]} Ne5 {[%emt 0:00:26]} 15. Bxb6 {[%emt 0:00:32]} Qxb6 {[%emt 0:00:13]} 16. O-O-O {[%emt 0:00:24]} Rb8 {[%emt 0:00:59]} 17. f4 {[%emt 0:00:30]} Nc4 {[%emt 0:00:28]} 18. Qd4 {[%emt 0:00:08]} Qxd4 {[%emt 0:00:23]} 19. Nxd4 {[%emt 0:00:05]} h6 {[%emt 0:00:39]} 20. Rdg1 {[%emt 0:00:46]} hxg5 {[%emt 0:01:13]} 21. hxg5 {[%emt 0:00:36]} Kd7 {[%emt 0:00:18]} 22. Bg4 {[%emt 0:00:51]} Ne3 {[%emt 0:01:08]} 23. Bh3 {[%emt 0:00:44]} Kc7 {[%emt 0:00:57]} 24. g6 {[%emt 0:00:10]} Bf6 {[%emt 0:00:47]} 25. Nde2 {[%emt 0:00:57]} fxg6 {[%emt 0:00:26]} 26. Rg3 {[%emt 0:00:43]} Nc4 {[%emt 0:00:28]} 27. Rhg1 {[%emt 0:00:39]} Rbe8 {[%emt 0:00:46]} 28. Bf1 {[%emt 0:02:16]} e5 {[%emt 0:01:03]} 29. fxe5 {[%emt 0:01:36]} Rxe5 {[%emt 0:00:22]} 30. Nf4 {[%emt 0:00:57]} Bxe4 {[%emt 0:01:57]} 31. Nxe4 {[%emt 0:00:50]} Rxe4 {[%emt 0:00:19]} 32. Nd5+ {[%emt 0:00:11]} Kc6 {[%emt 0:00:23]} 33. Bxc4 {[%emt 0:00:13]} Rxc4 {[%emt 0:00:53]} 34. Nxf6 {[%emt 0:00:00]} gxf6 {[%emt 0:00:00]} 35. Rxg6 {[%emt 0:00:00]} Re8 {[%emt 0:00:48]} 36. R6g2 {[%emt 0:01:11]} f5 {[%emt 0:00:01]} 37. Rf1 {[%emt 0:00:16]} f4 {[%emt 0:00:20]} 38. Rgf2 {[%emt 0:00:09]} Rf8 {[%emt 0:00:09]} 39. b3 {[%emt 0:00:03]} Re4 {[%emt 0:00:02]} 40. Kd2 {[%emt 0:00:00]} d5 {[%emt 0:00:20]} 41. Rf3 {[%emt 0:00:07]} d4 {[%emt 0:00:41]} 42. c3 {[%emt 0:02:27]} Kd5 {[%emt 0:00:09]} 43. Rd3 {[%emt 0:00:26]} Ke5 {[%emt 0:00:25]} 44. cxd4+ {[%emt 0:00:51]} Rxd4 {[%emt 0:00:04]} 45. Re1+ {[%emt 0:00:01]} Kd5 {[%emt 0:00:21]} 46. b4 {[%emt 0:00:30]} f3 {[%emt 0:00:59]} 47. Rf1 {[%emt 0:00:30]} Rxd3+ {[%emt 0:00:18]} 48. Kxd3 {[%emt 0:00:01]} f2 {[%emt 0:00:00]} 49. Ke2 {[%emt 0:00:44]} Kc4 {[%emt 0:00:13]} 50. Rb1 {[%emt 0:00:19]} f1=Q+ {[%emt 0:00:31]} 51. Rxf1 {[%emt 0:00:06]} Rxf1 {[%emt 0:00:00]} 52. Kxf1 {[%emt 0:00:00]} Kb3 {[%emt 0:00:00]} 53. Ke2 {[%emt 0:00:00]} Kxa3 {[%emt 0:00:00]} 54. Kd2 {[%emt 0:00:00]} Kxb4 {[%emt 0:00:00]} 55. Kc2 {[%emt 0:00:00]} a5 {[%emt 0:00:00]} 56. Kb2 {[%emt 0:00:00]} Kc4 {[%emt 0:00:00]} 57. Kc2 {[%emt 0:00:00]} a4 {[%emt 0:00:00]} 58. Kb2 {[%emt 0:00:00]} b4 {[%emt 0:00:00]} 59. Kc2 {[%emt 0:00:00]} a3 {[%emt 0:00:00]} 60. Kb1 {[%emt 0:00:00]} Kc3 {[%emt 0:00:05]} 61. Ka1 {[%emt 0:00:00]} b3 {[%emt 0:00:02]} 62. Kb1 {[%emt 0:00:00]} b2 {[%emt 0:00:00]} 63. Ka2 {[%emt 0:00:00]} Kc2 {[%emt 0:00:00]} 0-1

[Event "Balkan Youth Online-ch 2020"]
[Site "Online"]
[Date "2020.10.31"]
[Round "5.7"]
[White "Petrovski, Nikola"]
[Black "Domurcak, Doruk"]
[Result "0-1"]
[ECO "C54"]
[WhiteElo "1031"]
[BlackElo "1244"]
[Annotator "NA"]
[PlyCount "36"]
[EventDate "2020.10.31"]
[EventType "swiss"]
[SourceTitle "playchess.com"]
[Source "ChessBase"]
[SourceQuality "1"]
[TimeControl "1500+5"]

1. e4 {[%emt 0:00:00]} e5 {[%emt 0:00:00]} 2. Nf3 {[%emt 0:00:00]} Nc6 {[%emt 0:00:00]} 3. Bc4 {[%emt 0:00:01]} Bc5 {[%emt 0:00:00]} 4. c3 {[%emt 0:00:02]} Nf6 {[%emt 0:00:00]} 5. d3 {[%emt 0:00:00]} d6 {[%emt 0:00:00]} 6. h3 {[%emt 0:00:01]} h6 {[%emt 0:00:00]} 7. O-O {[%emt 0:00:01]} O-O {[%emt 0:00:00]} 8. Be3 {[%emt 0:00:00]} Bb6 {[%emt 0:00:00]} 9. Nbd2 {[%emt 0:00:00]} Ne7 {[%emt 0:00:08]} 10. d4 {[%emt 0:00:08]} Ng6 {[%emt 0:00:37]} 11. Nh2 {[%emt 0:00:34]} Qe7 {[%emt 0:00:32]} 12. Bd3 {[%emt 0:00:12]} Bd7 {[%emt 0:01:03]} 13. Qe2 {[%emt 0:02:24]} Rfe8 {[%emt 0:00:33]} 14. f3 {[%emt 0:00:13]} Rad8 {[%emt 0:01:51]} 15. Qf2 {[%emt 0:00:14]} Nh5 {[%emt 0:01:50]} 16. g4 {[%emt 0:01:55]} Nhf4 {[%emt 0:00:09]} 17. Bxf4 {[%emt 0:00:00]} Nxf4 {[%emt 0:00:00]} 18. Bc2 {[%emt 0:00:25]} Nxh3+ {[%emt 0:00:00]} 0-1